bitfinex/quotes_ETHUSD_20220215
["timestamp","ask_amount","ask_price","bid_price","bid_amount"]
[1644920437968,0.00423716,3100.6,3100.2,0.00269821]
[1644920438567,0.00423716,3100.6,3100.1,0.92962976]
[1644920438770,0.00423716,3100.6,3100.2,0.00270208]
[1644920439012,0.00125857,3100.6,3100.2,0.00270208]
[1644920439415,0.00423716,3100.6,3100.2,0.93233184]
[1644920439815,0.00125857,3100.6,3100.2,0.92962976]
[1644920440016,0.00125857,3100.6,3100.2,0.93235398]
[1644920440220,0.00125857,3100.6,3100.3,1.61268]
[1644920440420,0.00125857,3100.6,3100.4,0.92962976]
[1644920440614,0.00125857,3100.6,3100.4,1.73596976]
[1644920440820,0.00125857,3100.6,3100.5,0.92962976]
[1644920441218,0.00125857,3100.6,3100.5,1.73587976]
[1644920441616,0.00125857,3100.6,3100.5,2.73587976]
[1644920442768,0.00125857,3100.6,3100.5,1.73587976]
[1644920443168,0.00297859,3101.2,3100.7,0.80625]
[1644920443371,0.00297859,3101.2,3100.6,1.61250273]
[1644920443372,0.00297859,3101.2,3100.8,0.92962976]
[1644920443569,0.00297859,3101.2,3100.9,0.92962976]
[1644920443768,0.00095909,3101.4,3100.6,1.273e-05]
[1644920443769,0.40915938,3101.3,3100.6,1.273e-05]
[1644920443969,0.40915938,3101.2,3100.8,0.022304]
[1644920444168,0.00297859,3101.2,3100.9,0.94391477]
[1644920444373,0.4091613,3101.3,3100.9,0.94391477]
[1644920444570,0.00297859,3101.2,3100.9,1.75010477]
[1644920444770,0.00095924,3101.4,3100.9,0.80619]
[1644920445373,0.00095924,3101.4,3101.0,0.94429402]
[1644920445573,0.00393783,3101.4,3101.0,0.94429402]
[1644920445772,0.40916037,3101.3,3101.0,0.94429402]
[1644920445973,0.40916037,3101.2,3100.8,0.022304]
[1644920446174,0.00297859,3101.2,3100.9,0.98475607]
[1644920446374,0.40916037,3101.3,3100.9,0.98475607]
[1644920446613,0.40916037,3101.2,3100.9,0.98475607]
[1644920446813,0.00297859,3101.2,3100.9,1.79100607]
[1644920447020,0.36844014,3101.3,3101.0,0.98475607]
[1644920447216,0.36844014,3101.2,3100.8,0.022304]
[1644920447415,0.00297859,3101.1,3100.9,0.98474795]
[1644920447618,0.3684617,3101.3,3101.1,0.00434781]
[1644920448317,0.00297859,3101.4,3101.2,0.98460997]
[1644920448518,0.00312127,3101.4,3101.2,0.98460997]
[1644920449316,0.91642348,3101.7,3101.2,1.79066997]
[1644920449516,0.91642348,3101.7,3101.3,0.98460997]
[1644920449517,0.00297859,3101.4,3101.3,0.98460997]
[1644920449718,0.36896495,3101.6,3101.1,0.00434781]
[1644920449719,0.00284848,3101.5,3101.1,0.00434781]
[1644920449916,0.37181343,3101.5,3101.2,0.98515314]
[1644920450267,0.00297859,3101.4,3101.2,1.79135314]
[1644920450468,0.37194354,3101.4,3101.3,0.98515314]
[1644920450669,0.36896495,3101.4,3101.3,0.98515314]
[1644920451071,0.00268708,3101.5,3101.3,0.98515314]
[1644920451872,0.36896514,3101.7,3101.3,2.59731314]
[1644920452072,0.36896514,3101.7,3101.4,0.98515314]
[1644920452073,0.36989285,3101.6,3101.4,0.98515314]
[1644920452275,0.36896514,3101.5,3101.4,1.79125314]
[1644920452474,0.37194373,3101.5,3101.4,1.79125314]
[1644920452676,0.00297859,3101.5,3101.4,0.98515314]
[1644920452875,0.36896514,3101.8,3101.4,0.98515314]
[1644920452876,1.74211198,3101.8,3101.4,0.98515314]
[1644920453176,0.33010946,3101.7,3101.6,6.95]
[1644920453375,0.01567578,3101.9,3101.6,6.95]
[1644920453376,0.01567578,3101.9,3101.6,11.71871688]
[1644920453574,0.01567578,3101.9,3101.7,0.99231694]
[1644920454026,0.01567578,3101.9,3101.7,2.26310694]
[1644920454222,0.01567578,3101.9,3101.7,1.27079]
[1644920454926,0.01567578,3101.9,3101.6,8.03224994]
[1644920455122,0.01567578,3101.9,3101.6,8.99370995]
[1644920455322,0.01567578,3101.9,3101.6,8.03224994]
[1644920455523,0.01567578,3101.9,3101.6,0.94404997]
[1644920455725,0.01567578,3101.9,3101.2,0.02817029]
[1644920455924,0.82186578,3101.9,3101.5,0.02251849]
[1644920456124,0.01567578,3101.9,3101.5,0.02251849]
[1644920458064,0.0188766,3101.9,3101.5,0.02251849]
[1644920459165,0.01567578,3101.9,3101.5,0.02251849]
[1644920459366,0.0188766,3101.9,3101.5,0.02251849]
[1644920460367,0.01567578,3101.9,3101.5,0.02251849]
[1644920460567,0.0188766,3101.9,3101.5,0.02251849]
[1644920461623,0.01567578,3101.9,3101.5,0.02251849]
[1644920461818,0.0188766,3101.9,3101.5,0.02251849]
[1644920462622,0.01567578,3101.9,3101.5,0.02251849]
[1644920463021,0.01683266,3101.9,3101.5,0.02251849]
[1644920463820,0.01567578,3101.9,3101.5,0.02251849]
[1644920464022,0.80618,3101.8,3101.5,0.02251849]
[1644920464223,1.30185682,3101.7,3101.5,0.02251849]
[1644920465021,2.07772,3101.7,3101.5,0.02251849]
[1644920465268,0.465,3101.7,3101.5,0.02251849]
[1644920465764,0.80626,3101.7,3101.5,0.02251849]
[1644920466066,0.0032197,3101.8,3101.5,0.02251849]
[1644920466364,0.01567578,3101.9,3101.5,0.02251849]
[1644920466766,0.01567578,3101.9,3101.2,2.41832]
[1644920466767,0.0032197,3101.8,3101.2,2.41832]
[1644920466968,1.6157797,3101.8,3100.8,3.50322069]
[1644920467367,1.6157797,3101.8,3100.8,0.00322069]
[1644920467573,1.61256,3101.8,3100.8,3.5]
[1644920467771,0.80628,3101.7,3100.8,3.50208533]
[1644920467968,0.80628,3101.7,3100.8,0.00208533]
[1644920468169,0.465,3101.6,3100.8,0.00208533]
[1644920468368,1.61282,3101.5,3100.8,0.00208533]
[1644920468568,1.15499183,3101.3,3100.8,0.00208533]
[1644920468768,1.15499183,3101.3,3100.6,0.25001273]
[1644920468769,1.27141,3101.2,3100.6,0.25001273]
[1644920469021,1.45499183,3101.3,3101.2,0.65761964]
[1644920469022,0.3,3101.3,3101.2,0.65761964]
[1644920469223,1.5713937,3101.6,3101.2,0.65761964]
[1644920469522,1.61281,3101.3,3101.2,0.65761964]
[1644920469721,1.91281,3101.3,3101.2,0.65761964]
[1644920470122,1.61281,3101.3,3101.2,0.65761964]
[1644920470325,1.91281,3101.3,3101.2,0.65761964]
[1644920470526,2.96059095,3101.3,3101.2,0.65761964]
[1644920471326,1.91281,3101.3,3101.2,0.65761964]
[1644920471823,1.61281,3101.3,3101.2,0.65761964]
[1644920475357,2.75028773,3100.8,3100.7,0.00322578]
[1644920475954,2.75028773,3100.8,3100.6,1.273e-05]
[1644920476253,1.17844773,3100.7,3100.6,0.00323857]
[1644920477101,1.17844773,3100.7,3099.9,0.9823122]
[1644920477400,0.80653,3100.7,3100.5,0.00322591]
[1644920478004,0.37186898,3100.6,3100.5,0.00322591]
[1644920478402,0.80662,3100.4,3099.9,0.9823122]
[1644920478905,1.15872532,3100.3,3100.0,0.9823122]
[1644920479103,1.61323,3100.5,3100.1,0.9823122]
[1644920479306,1.61323,3100.5,3100.2,0.9823122]
[1644920479504,1.61323,3100.5,3100.3,0.9823122]
[1644920479703,1.61325,3100.4,3100.1,0.00322615]
[1644920480250,1.890955,3100.4,3100.1,0.00322615]
[1644920480453,0.80662,3100.3,3100.1,0.00322615]
[1644920480657,0.80662,3100.3,3099.6,0.98257607]
[1644920481051,0.80662,3100.3,3100.1,0.00295786]
[1644920482053,0.80662,3100.3,3099.6,0.98257607]
[1644920482252,0.80662,3100.3,3100.0,0.00295789]
[1644920483053,0.80662,3100.3,3099.7,0.98257607]
[1644920483453,0.80662,3100.3,3100.0,0.00295791]
[1644920484299,0.80662,3100.3,3099.5,7.2495]
[1644920484300,1.97361979,3100.3,3099.9,0.98257607]
[1644920484500,1.97361979,3100.3,3100.0,0.98257607]
[1644920484703,1.97361979,3100.3,3100.1,0.98257607]
[1644920484904,1.97361979,3100.3,3099.3,0.8067006]
[1644920484905,3.56752873,3100.2,3099.3,0.8067006]
[1644920485104,3.56752873,3100.2,3099.4,0.98259817]
[1644920485105,0.80671,3100.0,3099.4,0.98259817]
[1644920485301,0.80671,3100.0,3099.5,0.98259817]
[1644920485302,0.83686102,3099.9,3099.5,0.98259817]
[1644920485500,0.39402342,3099.8,3099.6,0.98259817]
[1644920485704,1.1068486,3100.0,3099.7,0.98259817]
[1644920485906,0.465,3099.7,3098.8,0.60727366]
[1644920486104,0.80682,3099.5,3098.8,0.96089198]
[1644920487101,0.80682,3099.5,3098.9,0.96089198]
[1644920487303,0.80682,3099.5,3099.0,0.96089198]
[1644920487501,0.80682,3099.5,3099.1,0.96089198]
[1644920487751,0.80682,3099.5,3099.2,0.96089198]
[1644920487951,1.27173,3099.7,3099.3,0.96089198]
[1644920488149,2.84078,3099.9,3099.4,0.96089198]
[1644920488150,1.61348,3099.9,3099.4,0.96089198]
[1644920488349,1.61348,3099.9,3099.5,0.96089198]
[1644920488553,1.61348,3099.9,3099.6,0.96089198]
[1644920488753,1.3372901,3099.9,3098.8,0.60727366]
[1644920488950,0.465,3100.0,3099.9,0.12723411]
[1644920489157,1.60800938,3100.0,3099.9,0.12723411]
[1644920489953,6.85420672,3100.0,3099.9,0.12723411]
[1644920490352,7.15420672,3100.0,3099.9,0.12723411]
[1644920490553,6.85420672,3100.0,3099.9,0.12723411]
[1644920490758,3.22150938,3100.0,3099.9,0.12723411]
[1644920490958,1.60800938,3100.0,3099.9,0.12723411]
[1644920492206,1.14300938,3100.0,3099.9,0.12723411]
[1644920494011,0.80674,3100.1,3099.9,0.12723411]
[1644920495852,1.1246549,3100.0,3099.9,0.12723411]
[1644920496051,1.14553992,3100.0,3099.9,0.12723411]
[1644920496653,0.02088502,3100.0,3099.9,0.12723411]
[1644920499503,0.02088502,3100.0,3099.9,1.04748918]
[1644920509104,1.61314,3100.5,3100.4,0.00759338]
[1644920510953,2.04812466,3100.5,3100.4,0.93002246]
[1644920511155,1.24152466,3100.5,3100.4,0.93002246]
[1644920513154,1.24152466,3100.5,3100.4,0.00759338]
[1644920515228,1.24152466,3100.5,3100.4,0.93072977]
[1644920519858,1.18672466,3100.5,3100.4,0.93072977]
[1644920520059,1.50942466,3100.5,3100.4,0.93072977]
[1644920520462,1.41242466,3100.5,3100.4,0.93072977]
[1644920528069,1.12924,3100.5,3100.4,0.00759338]
[1644920531511,0.00322003,3101.1,3100.5,6.53491523]
[1644920531706,0.00322003,3101.1,3100.6,3.5]
[1644920531906,0.00322003,3101.1,3100.5,8.95376523]
[1644920532106,0.00322003,3101.1,3100.5,8.14753523]
[1644920532510,0.61567834,3101.5,3100.5,8.14753523]
[1644920532756,0.00322016,3101.1,3100.6,1.6126826]
[1644920533656,0.61271465,3101.4,3100.6,1.6126826]
[1644920533859,0.00322018,3101.1,3100.9,0.806301]
[1644920535060,0.97417044,3101.2,3100.9,0.806301]
[1644920535459,0.97417044,3101.2,3100.9,1.612611]
[1644920535657,0.00311153,3101.2,3100.9,1.26007288]
[1644920535859,0.00311153,3101.2,3100.9,1.26005448]
[1644920536058,0.00296369,3101.4,3100.9,1.26005448]
[1644920536259,0.0031115,3101.2,3101.0,1.61264]
[1644920537306,0.80631,3101.3,3101.0,1.61264]
[1644920537502,0.80942147,3101.3,3101.0,2.418963]
[1644920537706,0.80942147,3101.3,3101.0,1.612633]
[1644920538501,0.80631,3101.3,3101.0,1.612633]
[1644920538704,1.79050787,3101.4,3101.0,1.612633]
[1644920539003,0.98422787,3101.4,3101.0,1.612633]
[1644920539205,0.00296369,3101.4,3101.0,1.612633]
[1644920539402,0.61567834,3101.6,3101.0,0.80631]
[1644920540003,0.61271465,3101.5,3101.1,0.8062323]
[1644920540256,0.00296369,3101.4,3101.2,0.80623]
[1644920540455,0.49640485,3101.4,3101.2,0.80623]
[1644920540755,0.49344116,3101.3,3101.2,0.80623]
[1644920540955,0.49344188,3101.3,3101.2,0.80623]
[1644920541157,0.49640557,3101.4,3101.2,1.67378666]
[1644920541359,0.49344188,3101.3,3101.2,0.80623]
[1644920541558,0.61567834,3101.7,3101.2,0.80623]
[1644920541559,0.61567834,3101.7,3101.3,0.8061742]
[1644920541766,0.00296369,3101.7,3101.4,1.6629898]
[1644920541960,0.50336964,3101.8,3101.5,0.8568098]
[1644920542161,0.00296369,3101.7,3101.5,1.1568098]
[1644920542359,0.50633333,3101.8,3101.6,0.8568098]
[1644920542559,0.50633333,3101.8,3101.6,1.6627997]
[1644920542762,0.50633333,3101.8,3101.7,0.8568098]
[1644920542960,0.50336964,3101.8,3101.6,2.4180499]
[1644920543159,0.50633333,3101.8,3101.6,2.4180499]
[1644920543562,0.45633333,3101.8,3101.7,0.85713026]
[1644920543765,0.45336964,3101.8,3101.6,2.4180499]
[1644920544005,0.45633333,3101.8,3101.6,2.4180499]
[1644920544205,0.45633333,3101.8,3101.6,3.2241099]
[1644920545209,0.00296369,3101.8,3101.6,3.2241099]
[1644920545412,0.01567578,3101.9,3101.6,3.2241099]
[1644920545808,0.01567578,3101.9,3101.7,3.43183269]
[1644920546009,0.01567578,3101.9,3101.7,5.04384959]
[1644920546212,0.01567578,3101.9,3101.8,3.26568154]
[1644920546810,0.01567578,3101.9,3101.7,1.6120169]
[1644920547210,0.01567578,3101.9,3101.8,3.12603305]
[1644920547612,0.01567578,3101.9,3101.7,1.6120169]
[1644920547854,0.01567578,3101.9,3101.7,4.73981925]
[1644920548253,0.01567578,3101.9,3101.8,2.53728]
[1644920548654,0.01567578,3101.9,3101.7,1.6120169]
[1644920549854,0.01567578,3101.9,3101.8,3.134927]
[1644920550659,0.01567578,3101.9,3101.7,1.6120169]
[1644920551503,0.00296369,3102.4,3102.1,0.80999294]
[1644920551702,0.01477038,3102.5,3102.1,0.80999294]
[1644920552007,0.04206333,3102.3,3102.1,0.80999294]
[1644920552404,0.04149491,3102.2,3102.1,0.80999294]
[1644920552703,0.04263176,3102.2,3102.1,0.80999294]
[1644920557158,0.04263176,3102.2,3102.1,4.06376047]
[1644920557356,0.04263176,3102.2,3102.1,0.80999294]
[1644920566255,0.04559545,3102.2,3102.1,0.80999294]
[1644920566705,0.04263176,3102.2,3102.1,0.80999294]
[1644920568610,0.04263176,3102.2,3102.1,4.86151266]
[1644920570652,0.04263176,3102.2,3102.1,1.63754359]
[1644920570854,0.04263176,3102.2,3102.1,4.75148421]
[1644920571455,0.01362014,3102.7,3102.5,0.0136724]
[1644920571854,0.80595,3102.6,3102.5,0.0136724]
[1644920573457,0.01362014,3102.7,3102.5,0.0136724]
[1644920575011,0.81954014,3102.7,3102.5,0.8195293]
[1644920575207,0.82250383,3102.7,3102.5,1.6254393]
[1644920575806,0.82250383,3102.7,3102.5,0.8195824]
[1644920576606,0.82250383,3102.7,3102.5,1.6255327]
[1644920577010,0.52766139,3102.6,3102.5,0.8196227]
[1644920577856,0.52766139,3102.6,3102.5,0.0136724]
[1644920578056,0.82250383,3102.7,3102.5,0.8195924]
[1644920578459,0.82250383,3102.7,3102.5,0.0136724]
[1644920578460,0.825723,3102.7,3102.5,0.0136724]
[1644920579460,0.82250383,3102.7,3102.5,0.0136724]
[1644920579657,0.52321463,3102.6,3102.5,0.0136724]
[1644920580057,2.13523463,3102.6,3102.5,0.0136724]
[1644920580659,1.32920463,3102.6,3102.5,0.0136724]
[1644920583809,1.32920463,3102.6,3102.5,0.84174023]
[1644920584409,1.32920463,3102.6,3102.5,0.0136724]
[1644920584606,2.09420463,3102.6,3102.5,0.0136724]
[1644920586066,6.95,3102.5,3101.6,0.25]
[1644920586264,6.95,3102.5,3101.1,0.00322086]
[1644920586265,0.61453551,3102.1,3101.1,0.00322086]
[1644920586463,5.10275014,3102.0,3101.1,0.00322086]
[1644920586666,5.10275014,3102.0,3100.9,0.79199701]
[1644920586667,0.61453551,3101.8,3100.9,0.79199701]
[1644920586869,0.465,3101.7,3100.9,0.79199701]
[1644920587064,0.94997944,3101.3,3101.1,0.00322051]
[1644920587267,0.52321463,3101.2,3101.1,0.00322051]
[1644920587465,1.32957463,3101.2,3101.1,0.79521752]
[1644920587663,1.32957463,3101.2,3101.1,0.00322051]
[1644920587863,1.32957463,3101.2,3100.9,0.79199701]
[1644920588063,0.52321463,3101.1,3101.0,0.79199701]
[1644920588263,0.52321463,3101.1,3101.0,0.00322043]
[1644920588666,3.95,3100.9,3100.4,1.0434823]
[1644920588866,3.95,3100.9,3100.1,0.25]
[1644920588867,4.75,3100.8,3100.1,0.25]
[1644920589111,4.75,3100.8,3100.0,0.00644655]
[1644920589112,0.465,3100.7,3100.0,0.00644655]
[1644920589517,1.04659538,3100.3,3100.0,0.00644655]
[1644920589714,0.465,3100.2,3099.9,0.0807028]
[1644920589912,6.95676,3100.1,3099.3,0.25]
[1644920590112,6.95676,3100.1,3098.9,7.43]
[1644920590113,0.465,3100.0,3098.9,7.43]
[1644920590313,1.465,3100.0,3098.6,0.25]
[1644920590513,1.465,3100.0,3098.4,0.60727366]
[1644920590514,0.3,3099.9,3098.4,0.60727366]
[1644920590716,0.465,3099.8,3098.4,0.60727366]
[1644920590913,0.80692,3099.7,3098.7,0.80692]
[1644920591114,5.2632715,3100.4,3098.7,0.80692]
[1644920591115,4.3601,3100.6,3099.1,0.60727366]
[1644920591313,4.3601,3100.6,3099.6,0.80649]
[1644920591513,3.5,3100.7,3099.6,0.80649]
[1644920591716,4.931,3100.9,3099.6,0.80649]
[1644920591918,6.2853572,3100.9,3099.8,0.80648]
[1644920592119,1.8193572,3100.9,3099.8,0.80648]
[1644920592515,0.80649,3100.6,3099.8,0.80648]
[1644920592759,3.5,3100.5,3099.5,1.61328]
[1644920592957,0.465,3100.5,3100.2,0.00298553]
[1644920593358,6.10753706,3100.4,3100.2,0.00030494]
[1644920593559,3.69523848,3100.3,3100.2,0.00030494]
[1644920593760,3.4728123,3100.3,3100.2,0.00030494]
[1644920593959,0.3,3100.3,3099.3,2.42006]
[1644920594159,1.61357,3100.1,3098.7,1.1406]
[1644920594358,1.61357,3100.1,3098.6,1.1529]
[1644920594359,0.97055938,3099.2,3098.6,1.1529]
[1644920594559,0.97055938,3099.2,3098.4,2.9374]
[1644920594767,0.80696,3099.0,3098.4,2.9374]
[1644920594960,0.80696,3099.0,3098.4,0.1612]
[1644920595559,0.80696,3099.0,3098.6,1.6138]
[1644920595761,2.42088,3099.8,3098.6,3.22747]
[1644920595960,0.3,3099.8,3098.6,1.61367]
[1644920596158,3.2932,3100.0,3098.6,5.72330657]
[1644920596358,1.4537,3099.9,3098.6,1.61367]
[1644920596621,1.4537,3099.9,3098.8,1.61357]
[1644920596622,1.87316598,3099.8,3098.8,1.61357]
[1644920596824,1.87316598,3099.8,3099.0,0.80681]
[1644920597023,1.10677,3099.7,3099.0,0.80681]
[1644920597222,1.10677,3099.7,3098.8,1.61357]
[1644920597430,0.3,3099.7,3098.8,1.61357]
[1644920597621,3.78683778,3099.8,3098.8,1.61357]
[1644920597821,2.98000728,3099.8,3099.1,0.0032217]
[1644920598022,0.80685,3099.5,3099.1,0.0032217]
[1644920598222,1.10685,3099.5,3099.1,0.0032217]
[1644920598723,1.9137694,3099.5,3098.6,3.22734]
[1644920598921,3.50141723,3099.4,3098.3,1.61381]
[1644920599122,4.6,3099.2,3098.2,7.43]
[1644920599323,4.6,3099.2,3098.0,0.25]
[1644920599324,5.99785907,3099.1,3098.0,0.25]
[1644920599524,5.99785907,3099.1,3097.2,0.25]
[1644920599823,5.0,3099.0,3097.2,0.25]
[1644920600029,2.4217457,3098.6,3097.2,1.61434]
[1644920600258,4.38096343,3098.5,3097.4,0.80723]
[1644920600461,4.38096343,3098.5,3097.4,1.61445]
[1644920600658,1.0,3098.4,3097.4,1.61445]
[1644920600858,2.0795439,3098.3,3097.4,0.80722]
[1644920601060,0.3,3098.2,3097.4,0.80722]
[1644920601258,1.10723,3098.2,3097.5,0.80717]
[1644920601660,1.10723,3098.2,3097.6,0.80717]
[1644920601859,0.3,3098.2,3097.6,0.80717]
[1644920602664,0.3,3098.2,3097.7,0.00321899]
[1644920602860,1.96503214,3098.1,3097.7,0.81034899]
[1644920603061,1.96503214,3098.1,3097.8,0.80716]
[1644920603262,0.3,3098.0,3097.8,0.80716]
[1644920604007,0.3,3098.0,3097.5,1.61426]
[1644920604008,1.5720944,3098.5,3097.9,0.80709]
[1644920604309,1.08636434,3098.3,3098.0,0.8071]
[1644920604512,1.38636434,3098.3,3098.0,0.7571]
[1644920604908,1.38636434,3098.3,3098.1,0.00639084]
[1644920605110,0.8070929,3098.2,3098.1,0.00639084]
[1644920605321,3.51374639,3099.0,3098.1,0.00639084]
[1644920605322,9.0435,3099.1,3098.1,0.00639084]
[1644920605513,1.2311,3099.6,3098.1,0.00639084]
[1644920605910,0.80681,3099.5,3098.1,5.59019084]
[1644920606111,0.80681,3099.5,3098.2,3.84372197]
[1644920606311,1.11401852,3099.4,3098.7,0.00303982]
[1644920606512,0.8068093,3099.1,3098.7,0.00303982]
[1644920606913,1.6137393,3099.1,3098.7,0.00303982]
[1644920607214,1.6137393,3099.1,3097.9,3.53504521]
[1644920607215,1.6137393,3099.1,3098.4,0.00639084]
[1644920607412,0.8068093,3099.1,3098.2,0.00639084]
[1644920607612,0.8068093,3099.1,3098.7,0.00303979]
[1644920607871,3.2281023,3099.1,3098.7,0.00303979]
[1644920608090,1.61422,3098.9,3098.7,0.00303979]
[1644920608268,2.42121,3098.9,3098.7,0.00303979]
[1644920608467,1.1765326,3098.4,3097.9,0.00639084]
[1644920608767,1.4765326,3098.4,3097.9,0.00639084]
[1644920609166,0.80714,3098.3,3097.9,0.00639084]
[1644920609571,2.421293,3099.1,3098.0,1.61403]
[1644920609768,2.8274463,3099.3,3098.1,4.34548316]
[1644920609969,1.6137463,3099.3,3098.2,0.81328084]
[1644920610167,0.80688,3099.2,3098.3,0.00639084]
[1644920610568,0.97392232,3098.6,3097.9,0.00934409]
[1644920610768,0.80688,3099.2,3098.3,0.80697]
[1644920610769,2.4206849,3099.2,3098.3,0.80697]
[1644920610967,1.9138049,3099.2,3098.5,0.80697]
[1644920611168,0.80694,3099.0,3098.6,0.00934371]
[1644920611608,1.10694,3099.0,3098.6,0.00934371]
[1644920611811,0.3,3099.0,3098.6,0.81626371]
[1644920612007,0.3,3099.0,3098.7,0.00639084]
[1644920612208,3.2273286,3099.6,3098.7,0.00639084]
[1644920612408,0.80687,3099.2,3098.7,3.21659002]
[1644920612613,3.2273286,3099.6,3098.8,0.00639084]
[1644920612811,1.0981033,3099.8,3098.8,0.81318084]
[1644920613015,0.92910715,3099.6,3098.9,4.14205206]
[1644920613211,2.8436,3100.2,3099.9,0.95628681]
[1644920613411,1.6134,3100.2,3099.9,0.95628681]
[1644920613614,0.80668,3100.1,3099.9,0.95628681]
[1644920614211,2.45120521,3100.0,3099.4,0.00639084]
[1644920614410,1.61352,3099.9,3099.4,0.00639084]
[1644920614811,0.80676,3099.8,3099.4,0.00639084]
[1644920615463,1.91352,3099.9,3099.5,0.80666]
[1644920615464,0.3,3099.9,3099.5,0.80666]
[1644920615670,1.13771891,3100.0,3099.5,0.80666]
[1644920615862,1.94436891,3100.0,3099.5,0.80666]
[1644920616462,2.75102671,3100.0,3099.5,0.80666]
[1644920617463,1.61351,3099.9,3099.5,0.80666]
[1644920617666,0.80674,3099.9,3099.5,0.80666]
[1644920621313,0.80674,3099.9,3099.5,3.96335856]
[1644920621712,0.80674,3099.9,3099.5,0.80666]
[1644920622212,0.3,3099.7,3099.5,0.80666]
[1644920623663,0.3,3099.7,3099.6,0.3]
[1644920624265,0.3,3099.7,3099.5,0.80666]
[1644920624566,1.9136227,3099.7,3099.5,0.80666]
[1644920625565,1.22692034,3099.6,3099.5,0.80666]
[1644920625764,1.22692034,3099.6,3099.4,0.00639084]
[1644920625968,0.80682,3099.5,3099.4,0.00639084]
[1644920627046,0.80682,3099.5,3099.0,0.25]
[1644920627047,3.7,3099.4,3099.0,0.25]
[1644920627213,3.7,3099.4,3098.9,0.00296697]
[1644920627214,0.80701,3099.3,3098.9,1.91674697]
[1644920627415,0.80701,3099.3,3098.9,0.00296697]
[1644920627615,0.80701,3099.3,3098.3,0.807]
[1644920627816,0.80701,3099.3,3098.0,2.9027]
[1644920627817,0.465,3099.2,3098.0,2.9027]
[1644920628012,1.1482152,3098.3,3098.1,0.66532269]
[1644920628213,0.8071099,3098.3,3098.1,0.66532269]
[1644920628416,0.8071099,3098.3,3098.2,0.66532269]
[1644920628618,0.8071099,3098.3,3098.1,0.80711]
[1644920628913,1.0,3099.1,3098.2,0.66532269]
[1644920629114,0.465,3099.1,3098.1,1.31019431]
[1644920629315,0.8069003,3098.9,3098.3,1.61386]
[1644920629517,0.8069003,3098.9,3098.4,0.66532269]
[1644920629916,1.63604635,3100.2,3098.4,5.43725269]
[1644920629917,3.3889243,3100.1,3098.4,5.43725269]
[1644920630117,0.68884191,3100.0,3098.5,4.97206269]
[1644920630362,4.283,3100.3,3098.6,5.35669269]
[1644920630570,2.4200785,3099.7,3098.8,1.61319]
[1644920630766,2.4200785,3099.7,3099.2,1.13135375]
[1644920630969,1.6403895,3101.0,3099.5,0.80662]
[1644920631168,2.02199612,3101.1,3099.6,1.47180269]
[1644920631169,0.69688737,3100.9,3099.6,1.47180269]
[1644920631364,0.84279612,3101.1,3099.7,0.66532269]
[1644920631365,0.69688737,3100.8,3099.7,0.66532269]
[1644920631564,0.69688737,3100.7,3099.8,5.77810269]
[1644920631766,0.69688737,3100.6,3100.0,1.10541616]
[1644920631965,1.02681908,3101.1,3100.3,0.80638]
[1644920632164,1.6131,3100.8,3100.3,0.80638]
[1644920632363,1.6131,3100.8,3099.9,0.3]
[1644920632364,0.69671047,3100.7,3099.9,0.3]
[1644920632562,0.69671047,3100.7,3099.8,3.5]
[1644920632563,1.50319047,3100.7,3100.1,1.61313]
[1644920632764,1.50319047,3100.7,3100.1,1.91313]
[1644920632765,0.69671047,3100.6,3100.1,1.91313]
[1644920632964,1.15225892,3100.5,3100.4,0.80648]
[1644920633166,1.15225892,3100.5,3100.3,0.80653]
[1644920633167,1.84896939,3100.5,3099.4,1.00075785]
[1644920633366,3.07739363,3100.2,3099.7,0.66006]
[1644920633565,0.69671047,3100.1,3099.7,0.66006]
[1644920633767,1.50340047,3100.1,3099.8,1.61339]
[1644920634013,1.6133405,3100.1,3099.9,0.3]
[1644920634409,1.00024101,3100.0,3099.9,0.3]
[1644920634809,1.6133405,3100.1,3099.9,0.3]
[1644920635410,0.6979248,3100.0,3099.9,0.3]
[1644920635612,0.6979248,3100.0,3099.7,2.4199]
[1644920635613,2.3113348,3100.0,3099.7,0.80663]
[1644920635813,2.3113348,3100.0,3099.5,0.80689]
[1644920635814,0.6979248,3099.9,3099.5,0.80689]
[1644920636011,0.80691,3099.8,3099.1,1.61381]
[1644920636209,1.15547033,3099.6,3099.2,0.66082668]
[1644920636815,0.8068759,3099.4,3098.7,2.42011]
[1644920637013,0.80689,3099.2,3098.9,0.80689]
[1644920637212,0.80689,3099.2,3099.1,1.61381]
[1644920637411,0.80689,3099.2,3099.1,2.27470461]
[1644920637611,0.80689,3099.2,3099.1,2.57470461]
[1644920638067,1.613779,3099.2,3099.1,2.57470461]
[1644920638970,2.4206684,3099.3,3099.1,5.86238258]
[1644920639165,0.5,3099.7,3099.2,3.94357095]
[1644920639368,0.5,3099.7,3099.3,0.66089461]
[1644920639566,2.419662,3100.5,3099.4,3.53833762]
[1644920639767,1.46401363,3100.2,3099.5,2.27374461]
[1644920639965,1.46401363,3100.2,3099.7,0.80643]
[1644920640166,1.47692404,3100.2,3099.8,4.09801397]
[1644920640365,2.28341994,3100.2,3099.9,0.66089461]
[1644920640566,2.28341994,3100.2,3100.0,3.16675152]
[1644920640768,1.47692404,3100.2,3100.1,0.66089461]
[1644920640967,0.05014929,3100.7,3100.1,0.66089461]
[1644920640968,0.05014929,3100.7,3100.2,0.29994407]
[1644920641169,0.05014929,3100.7,3100.3,1.40229455]
[1644920641367,0.00295054,3100.6,3100.4,4.19125396]
[1644920641636,0.00295054,3100.6,3100.5,4.15676075]
[1644920641831,0.00295054,3100.6,3100.5,4.45676075]
[1644920642431,1.6126275,3100.9,3100.5,5.26311075]
[1644920642731,1.6126275,3100.9,3100.6,0.66089461]
[1644920642929,0.8063448,3100.7,3100.6,0.66089461]
[1644920643531,0.8019713,3100.7,3100.6,0.66089461]
[1644920643728,0.8019713,3100.7,3100.5,1.9127]
[1644920644335,0.8019713,3100.7,3100.5,1.6127]
[1644920644731,0.5,3101.7,3100.6,3.26878238]
[1644920644934,0.61453551,3101.8,3100.8,2.41901]
[1644920644935,0.67007022,3101.6,3100.8,2.41901]
[1644920645132,0.01291123,3101.2,3100.8,2.41901]
[1644920645374,0.67007022,3101.1,3100.8,2.41901]
[1644920645574,0.67007022,3101.1,3100.9,0.3]
[1644920645773,0.67007022,3101.1,3100.9,1.10632]
[1644920645972,0.67007022,3101.1,3100.9,2.71898]
[1644920646173,1.10615683,3101.0,3100.9,1.91266]
[1644920646372,1.77622705,3101.0,3100.9,1.91266]